bitfinex/quotes_BTCUSD_20251029
["timestamp","ask_amount","ask_price","bid_price","bid_amount"]
[1761717978768,1e-08,113360.0,113350.0,0.23599464]
[1761717978986,1e-08,113360.0,113350.0,0.05755]
[1761717979204,0.54735531,113360.0,113350.0,0.23399464]
[1761717979426,0.63747357,113360.0,113350.0,0.03251]
[1761717979847,0.63747357,113360.0,113350.0,0.03051]
[1761717980068,1.06182557,113360.0,113350.0,0.03051]
[1761717980280,1.06182557,113360.0,113350.0,0.03151]
[1761717980499,1.06224873,113360.0,113350.0,0.03151]
[1761717980750,0.69150113,113360.0,113350.0,0.03051]
[1761717981000,0.17644464,113350.0,113340.0,0.01253]
[1761717981248,0.57083224,113350.0,113340.0,0.03051]
[1761717981487,0.21897302,113350.0,113340.0,0.03051]
[1761717981701,0.20008464,113350.0,113340.0,0.03051]
[1761717982566,0.19038819,113350.0,113340.0,0.2069702]
[1761717982927,0.18464819,113350.0,113340.0,0.2320102]
[1761717983250,0.20254819,113350.0,113340.0,0.05555]
[1761717983675,0.21587819,113350.0,113340.0,0.03051]
[1761717984329,0.21688182,113350.0,113340.0,0.05555]
[1761717984740,0.19797819,113350.0,113340.0,0.2320102]
[1761717985180,0.3056972,113350.0,113340.0,0.03051]
[1761717985420,0.1764602,113340.0,113330.0,0.03757]
[1761717985639,0.1764602,113340.0,113320.0,0.19784591]
[1761717985640,0.17647577,113330.0,113320.0,0.04639456]
[1761717985850,0.20918932,113330.0,113320.0,0.00882456]
[1761717986118,0.20918932,113330.0,113320.0,0.02680456]
[1761717986353,0.27714471,113330.0,113320.0,0.20329591]
[1761717986580,0.00820355,113330.0,113320.0,0.22833591]
[1761717986834,0.00820355,113330.0,113320.0,1.18432838]
[1761717987271,0.00820355,113330.0,113320.0,1.20345941]
[1761717988365,0.00820355,113330.0,113320.0,1.20545941]
[1761717988570,0.00820355,113330.0,113320.0,1.20745941]
[1761717988794,0.00820355,113330.0,113320.0,1.29727842]
[1761717992554,0.00820355,113330.0,113320.0,1.42444739]
[1761717992995,0.00820355,113330.0,113320.0,1.43265094]
[1761717994961,0.00820355,113330.0,113320.0,0.81665847]
[1761717995163,0.00820355,113330.0,113320.0,1.33462838]
[1761717995789,0.00820355,113330.0,113320.0,1.33262838]
[1761717996823,0.00820355,113330.0,113320.0,1.33062838]
[1761717997232,0.00820355,113330.0,113320.0,1.33262838]
[1761717997436,0.00820355,113330.0,113320.0,1.42244739]
[1761717998314,0.00820355,113330.0,113320.0,1.33262838]
[1761717998524,0.00820355,113330.0,113320.0,1.18632838]
[1761717998733,0.00820355,113330.0,113320.0,0.66015492]
[1761717998946,0.00820355,113330.0,113320.0,1.18632838]
[1761718001720,0.00820355,113330.0,113320.0,0.32015492]
[1761718002373,0.00820355,113330.0,113320.0,0.23033591]
[1761718002588,0.02712015,113330.0,113320.0,0.22151135]
[1761718003014,0.27991117,113330.0,113320.0,0.22151135]
[1761718003239,0.30293254,113330.0,113320.0,0.19547135]
[1761718003439,0.05032015,113330.0,113320.0,0.19547135]
[1761718003641,0.05032015,113330.0,113320.0,0.19647135]
[1761718003849,0.05032015,113330.0,113320.0,0.19547135]
[1761718004054,0.05032015,113330.0,113320.0,0.20429591]
[1761718004283,0.03140355,113330.0,113320.0,0.20429591]
[1761718004519,0.01485925,113330.0,113320.0,0.20429591]
[1761718004719,0.01485925,113330.0,113320.0,0.22944591]
[1761718005169,0.00824925,113330.0,113320.0,0.22944591]
[1761718006498,0.00824925,113330.0,113320.0,0.31926492]
[1761718006715,0.00824925,113330.0,113320.0,0.84543838]
[1761718007972,0.00824925,113330.0,113320.0,0.31926492]
[1761718012119,0.00824925,113330.0,113320.0,0.84543838]
[1761718015431,0.00824925,113330.0,113320.0,0.96592634]
[1761718018818,0.00824925,113330.0,113320.0,1.05574535]
[1761718019072,0.02397744,113350.0,113340.0,0.1764602]
[1761718019327,0.00847258,113350.0,113340.0,0.2062102]
[1761718019843,0.00847258,113350.0,113340.0,0.2313602]
[1761718020373,0.03223842,113350.0,113340.0,0.2313602]
[1761718021172,0.04882842,113350.0,113340.0,0.2313602]
[1761718021402,0.02506258,113350.0,113340.0,0.2313602]
[1761718021685,0.02964258,113350.0,113340.0,0.2062102]
[1761718022409,0.02964258,113350.0,113340.0,0.2313602]
[1761718022643,0.01305258,113350.0,113340.0,0.2313602]
[1761718024266,0.00847258,113350.0,113340.0,0.2313602]
[1761718026073,0.02506258,113350.0,113340.0,0.2313602]
[1761718026305,0.00847258,113350.0,113340.0,0.2313602]
[1761718027420,0.0002116,113350.0,113340.0,0.2313602]
[1761718027915,0.0002116,113350.0,113340.0,0.87802162]
[1761718028753,0.0002116,113350.0,113340.0,0.96784063]
[1761718029027,1e-08,113350.0,113340.0,1.30784063]
[1761718030363,1e-08,113350.0,113340.0,1.30884063]
[1761718030787,1e-08,113350.0,113340.0,1.31793017]
[1761718030997,1e-08,113350.0,113340.0,1.40674918]
[1761718031211,1e-08,113350.0,113340.0,1.40874918]
[1761718031434,1e-08,113350.0,113340.0,1.41274918]
[1761718035025,1e-08,113350.0,113340.0,0.66717921]
[1761718035235,1e-08,113350.0,113340.0,1.31384063]
[1761718035703,1e-08,113350.0,113340.0,0.32717921]
[1761718035916,1e-08,113350.0,113340.0,0.66517921]
[1761718036125,1e-08,113350.0,113340.0,0.32517921]
[1761718036349,1e-08,113350.0,113340.0,0.32317921]
[1761718036562,1e-08,113350.0,113340.0,0.32517921]
[1761718036773,1e-08,113350.0,113340.0,0.32317921]
[1761718036981,1e-08,113350.0,113340.0,0.32117921]
[1761718037207,1e-08,113350.0,113340.0,0.32217921]
[1761718037435,1e-08,113350.0,113340.0,0.2333602]
[1761718039005,1e-08,113350.0,113340.0,0.2323602]
[1761718039248,1e-08,113350.0,113340.0,0.2333602]
[1761718039460,0.17644465,113350.0,113340.0,0.2333602]
[1761718039677,0.17644465,113350.0,113340.0,0.2323602]
[1761718039904,0.2281259,113350.0,113340.0,0.2323602]
[1761718040137,0.2125559,113350.0,113340.0,0.2323602]
[1761718040788,0.2125559,113350.0,113340.0,0.2313602]
[1761718041013,0.17644465,113350.0,113340.0,0.2313602]
[1761718041461,0.17644465,113350.0,113340.0,0.0549]
[1761718041677,0.18468662,113350.0,113340.0,0.0549]
[1761718042126,0.18468662,113350.0,113340.0,0.2313602]
[1761718042561,0.00824198,113350.0,113340.0,0.2313602]
[1761718043021,1e-08,113350.0,113340.0,0.2313602]
[1761718043296,1e-08,113350.0,113340.0,0.2323602]
[1761718046064,0.17644465,113350.0,113340.0,0.2323602]
[1761718046271,0.18468662,113350.0,113340.0,0.2323602]
[1761718046489,0.17644465,113350.0,113340.0,0.2323602]
[1761718046738,1e-08,113350.0,113340.0,0.96884063]
[1761718047165,1e-08,113350.0,113340.0,0.32217921]
[1761718049332,0.21604135,113370.0,113340.0,0.29702921]
[1761718049550,0.17642965,113360.0,113350.0,0.05281]
[1761718050218,0.17642965,113360.0,113350.0,0.22925464]
[1761718051839,0.24040924,113360.0,113350.0,0.0277]
[1761718052067,0.24299089,113360.0,113340.0,0.2138202]
[1761718052275,0.21761089,113360.0,113340.0,0.2138202]
[1761718052487,0.19860965,113360.0,113350.0,0.01577]
[1761718054029,0.19860965,113360.0,113340.0,0.2138202]
[1761718054030,0.17644464,113350.0,113340.0,0.2138202]
[1761718054474,0.20481464,113350.0,113340.0,0.2044802]
[1761718054686,0.20481464,113350.0,113340.0,0.2295902]
[1761718054899,0.18924464,113350.0,113340.0,0.2295902]
[1761718055542,0.18924464,113350.0,113340.0,0.02802]
[1761718055543,0.24650235,113350.0,113340.0,0.02802]
[1761718056203,0.24650235,113350.0,113340.0,0.02902]
[1761718057594,0.20481464,113350.0,113340.0,0.02902]
[1761718060857,0.20481464,113350.0,113340.0,0.2054802]
[1761718061083,0.20481464,113350.0,113340.0,0.2293102]
[1761718061309,0.2130661,113350.0,113340.0,0.2293102]
[1761718062196,0.2130661,113350.0,113340.0,0.05285]
[1761718062420,0.23207095,113350.0,113340.0,0.02902]
[1761718062634,0.23207095,113350.0,113340.0,0.05285]
[1761718063571,0.27851775,113350.0,113340.0,0.001]
[1761718063788,0.32664359,113350.0,113340.0,0.001]
[1761718064775,0.32664359,113350.0,113340.0,0.01788]
[1761718064980,0.22746679,113350.0,113340.0,0.03047]
[1761718065179,0.22746679,113350.0,113340.0,0.0543]
[1761718065180,0.22442194,113350.0,113340.0,0.0543]
[1761718067411,0.23653194,113350.0,113340.0,0.01359]
[1761718067628,0.27989679,113350.0,113340.0,0.001]
[1761718067850,0.7401003,113350.0,113340.0,0.001]
[1761718068068,0.97171236,113350.0,113340.0,0.001]
[1761718068915,0.17647577,113330.0,113320.0,0.21952591]
[1761718069130,0.18472723,113330.0,113320.0,0.23640591]
[1761718070266,0.18472723,113330.0,113320.0,0.23740591]
[1761718075414,0.00825146,113330.0,113320.0,0.23740591]
[1761718075605,0.1996886,113340.0,113330.0,0.17647577]
[1761718075871,0.18894684,113340.0,113330.0,0.22977577]
[1761718076809,0.18894684,113340.0,113330.0,0.0543]
[1761718077241,0.18994684,113340.0,113330.0,0.0543]
[1761718078092,0.19908012,113340.0,113330.0,0.0543]
[1761718078337,0.23885856,113340.0,113330.0,0.0543]
[1761718078780,0.62832736,113340.0,113330.0,0.03047]
[1761718079235,0.25786341,113340.0,113330.0,0.03047]
[1761718080179,0.23404497,113340.0,113330.0,0.03047]
[1761718080708,0.60450892,113340.0,113330.0,0.03047]
[1761718081360,0.25786341,113340.0,113330.0,0.03047]
[1761718081558,0.62832736,113340.0,113330.0,0.03047]
[1761718082167,0.74250637,113340.0,113330.0,0.001]
[1761718084654,0.65268736,113340.0,113330.0,0.001]
[1761718085227,0.62832736,113340.0,113330.0,0.03047]
[1761718085440,0.62832736,113340.0,113330.0,0.0543]
[1761718086371,0.62832736,113340.0,113330.0,0.03047]
[1761718087249,0.65352736,113340.0,113330.0,0.03047]
[1761718088111,0.28306341,113340.0,113330.0,0.03047]
[1761718088327,0.65352736,113340.0,113330.0,0.03047]
[1761718088595,0.62832736,113340.0,113330.0,0.03047]
[1761718088840,0.61919408,113340.0,113330.0,0.23166577]
[1761718089526,0.60323408,113340.0,113330.0,0.23166577]
[1761718089968,0.20472814,113340.0,113330.0,0.68102966]
[1761718090205,0.18572329,113340.0,113330.0,0.42565395]
[1761718090414,0.18572329,113340.0,113330.0,0.23166577]
[1761718090843,0.18572329,113340.0,113330.0,0.60212972]
[1761718092401,0.18572329,113340.0,113330.0,0.23166577]
[1761718094253,0.18572329,113340.0,113330.0,0.60212972]
[1761718094680,0.18572329,113340.0,113330.0,0.23166577]
[1761718095389,0.68325726,113340.0,113330.0,0.03047]
[1761718095603,0.70226211,113340.0,113330.0,0.03047]
[1761718096970,0.72653211,113340.0,113330.0,0.01359]
[1761718097183,0.72660868,113340.0,113330.0,0.001]
[1761718097397,1.09822074,113340.0,113330.0,0.001]
[1761718097789,1.07438748,113340.0,113330.0,0.001]
[1761718101512,1.44485143,113340.0,113330.0,0.001]
[1761718101798,1.61857237,113340.0,113330.0,0.001]
[1761718102671,0.17649043,113330.0,113310.0,0.22202715]
[1761718102894,0.69263093,113330.0,113310.0,0.22217209]
[1761718103112,0.71169753,113330.0,113310.0,0.22217209]
[1761718103536,0.16061135,113320.0,113310.0,0.22217209]
[1761718103751,0.56343702,113320.0,113310.0,0.18858186]
[1761718103959,0.60659499,113320.0,113310.0,0.17665186]
[1761718104172,0.21186104,113320.0,113310.0,0.19271186]
[1761718104452,0.21137104,113320.0,113310.0,0.22990186]
[1761718104865,0.19230444,113320.0,113310.0,0.22990186]
[1761718105505,0.19230444,113320.0,113310.0,0.23090186]
[1761718107991,0.27247602,113320.0,113310.0,0.23090186]
[1761718108191,0.21137104,113320.0,113310.0,0.23090186]
[1761718108603,0.19230444,113320.0,113310.0,0.23090186]
[1761718108801,0.19230444,113320.0,113310.0,0.05439494]
[1761718109006,0.20867444,113320.0,113310.0,0.05439494]
[1761718109472,0.20867444,113320.0,113310.0,0.23090186]
[1761718110299,0.19283444,113320.0,113310.0,0.05439494]
[1761718111576,0.19283444,113320.0,113310.0,0.23090186]
[1761718111789,0.17646444,113320.0,113310.0,0.23090186]
[1761718112002,0.54692839,113320.0,113310.0,0.23090186]
[1761718112223,0.56599499,113320.0,113310.0,0.23090186]
[1761718112647,0.19553104,113320.0,113310.0,0.23090186]
[1761718112871,0.19283444,113320.0,113310.0,0.23090186]
[1761718113092,0.17646444,113320.0,113310.0,0.23090186]
[1761718113536,0.17649135,113320.0,113310.0,0.23090186]
[1761718114163,0.23109767,113330.0,113310.0,0.60136581]
[1761718114395,0.21203107,113330.0,113320.0,0.6002053]
[1761718114606,0.0190666,113330.0,113320.0,0.6002053]
[1761718114813,0.23489045,113340.0,113320.0,0.6002053]
[1761718115028,0.23489045,113340.0,113330.0,0.22972577]
[1761718115029,0.21582385,113340.0,113330.0,0.22972577]
[1761718115457,0.21105981,113340.0,113330.0,0.22972577]
[1761718115697,0.19199321,113340.0,113330.0,0.22972577]
[1761718116314,0.19499321,113340.0,113330.0,0.22972577]
[1761718118023,0.21078321,113340.0,113330.0,0.05325]
[1761718118258,0.21078321,113340.0,113330.0,0.02848]
[1761718118907,0.18828321,113340.0,113330.0,0.22994577]
[1761718121546,0.003,113340.0,113330.0,0.68199357]
[1761718121753,0.003,113340.0,113330.0,0.60040972]
[1761718122407,0.003,113340.0,113330.0,0.62692571]
[1761718122634,0.01126535,113340.0,113330.0,0.62692571]
[1761718122854,0.00826535,113340.0,113330.0,0.25646176]
[1761718123279,0.64698165,113350.0,113330.0,0.25646176]
[1761718123503,0.66277165,113350.0,113340.0,0.01609]
[1761718124563,0.2923077,113350.0,113340.0,0.01609]
[1761718124787,0.2943077,113350.0,113340.0,0.01609]
[1761718126047,0.1764602,113340.0,113330.0,0.21388577]
[1761718126254,0.5709795,113340.0,113330.0,0.02851]
[1761718126469,0.6147561,113340.0,113320.0,0.2492419]
[1761718126673,0.37046395,113330.0,113320.0,0.2492419]
[1761718126890,0.59572167,113330.0,113320.0,0.2403419]
[1761718127381,0.59572167,113330.0,113320.0,0.05502599]
[1761718127382,0.66367706,113330.0,113320.0,0.05502599]
[1761718127593,0.17649135,113320.0,113310.0,0.2228872]
[1761718127812,0.57772065,113320.0,113310.0,0.2139872]
[1761718128032,0.57772065,113320.0,113310.0,0.02865494]
[1761718128033,0.59678725,113320.0,113310.0,0.02865494]
[1761718128235,0.68632916,113320.0,113310.0,0.05364494]
[1761718128450,0.68632916,113320.0,113310.0,0.08016581]
[1761718128901,0.68632916,113320.0,113310.0,0.05364494]
[1761718129105,0.68632916,113320.0,113310.0,0.05464494]
[1761718130345,0.68632916,113320.0,113310.0,0.23115186]
[1761718130772,0.67053916,113320.0,113310.0,0.23115186]
[1761718131150,0.30007521,113320.0,113310.0,0.23115186]
[1761718131328,0.58099725,113320.0,113310.0,0.23115186]
[1761718133304,0.2105333,113320.0,113310.0,0.23115186]
[1761718133551,0.56193065,113320.0,113310.0,0.23115186]
[1761718133816,0.58099725,113320.0,113310.0,0.23115186]
[1761718134854,0.2105333,113320.0,113310.0,0.23115186]
[1761718135110,0.1914667,113320.0,113310.0,0.23115186]
[1761718135334,0.00826535,113320.0,113310.0,0.23115186]
[1761718135555,0.00826535,113320.0,113310.0,0.60161581]
[1761718135769,0.0190666,113330.0,113320.0,0.17649135]
[1761718135980,0.00826333,113330.0,113320.0,0.5998253]
[1761718136443,0.24210378,113340.0,113320.0,0.5998253]
[1761718136661,0.24210378,113340.0,113330.0,0.05287]
[1761718137090,0.60929113,113340.0,113330.0,0.05287]
[1761718137305,0.17647577,113330.0,113320.0,0.03830777]
[1761718137529,0.2061891,113330.0,113320.0,0.23088912]
[1761718137755,0.2061891,113330.0,113320.0,0.25587912]
[1761718138178,0.2071891,113330.0,113320.0,0.25587912]
[1761718138605,0.2071891,113330.0,113320.0,0.05439777]
[1761718138829,0.17649135,113320.0,113310.0,0.2228872]
[1761718139044,0.18475468,113320.0,113310.0,0.24940652]
[1761718139255,0.18475468,113320.0,113310.0,0.26549652]
[1761718141184,0.18475468,113320.0,113310.0,0.26749652]
[1761718141632,0.20054468,113320.0,113310.0,0.24250652]
[1761718141864,0.20725468,113320.0,113310.0,0.05717426]
[1761718142077,0.20725468,113320.0,113310.0,0.19107186]
[1761718142282,0.20725468,113320.0,113310.0,0.20716186]
[1761718142488,0.00826333,113320.0,113310.0,0.23215186]
[1761718142741,0.00826333,113320.0,113310.0,0.23115186]
[1761718142742,0.00844196,113320.0,113310.0,0.23115186]
[1761718142947,0.17666998,113320.0,113310.0,0.23115186]
[1761718143147,0.00826333,113320.0,113310.0,0.23115186]
[1761718143360,0.21422974,113330.0,113310.0,0.23115186]
[1761718143569,0.17649135,113320.0,113310.0,0.21506186]
[1761718143775,0.18475468,113320.0,113310.0,0.21506186]
[1761718143994,0.18475468,113320.0,113310.0,0.21406186]
[1761718144137,0.18475468,113320.0,113310.0,0.23015186]
[1761718144354,0.18575468,113320.0,113310.0,0.23015186]
[1761718148157,0.00926333,113320.0,113310.0,0.23015186]
[1761718148412,0.00926333,113320.0,113310.0,0.60065658]
[1761718148647,0.001,113320.0,113310.0,0.60065658]
[1761718148889,0.001,113320.0,113310.0,0.62717515]
[1761718151142,0.001,113320.0,113310.0,0.25667043]
[1761718152341,0.19987998,113320.0,113310.0,0.23168043]
[1761718152589,0.20796706,113320.0,113310.0,0.23168043]
[1761718153102,0.20796706,113320.0,113310.0,0.25432043]
[1761718153834,0.20796706,113320.0,113310.0,0.05517351]
[1761718154351,0.19970135,113320.0,113310.0,0.05517351]
[1761718154596,0.20797077,113320.0,113310.0,0.05517351]
[1761718155628,0.20797077,113320.0,113310.0,0.25432043]
[1761718156905,0.00926942,113320.0,113310.0,0.67005106]
[1761718157121,0.00926942,113320.0,113310.0,0.62482515]
[1761718157339,0.001,113320.0,113310.0,0.62482515]
[1761718157748,0.001,113320.0,113310.0,0.25432043]
[1761718160105,0.001,113320.0,113310.0,0.25553822]
[1761718162077,0.001,113320.0,113310.0,0.62604294]
[1761718162500,0.001,113320.0,113310.0,0.25553822]
[1761718163388,0.001,113320.0,113310.0,0.62604294]
[1761718164026,0.001,113320.0,113310.0,1.16876483]
[1761718164919,0.001,113320.0,113310.0,0.79826011]
[1761718165883,0.001,113320.0,113310.0,0.79926011]
[1761718166101,0.26020688,113350.0,113340.0,0.1764602]
[1761718166345,0.23639015,113350.0,113340.0,0.2007502]
[1761718166576,0.23639015,113350.0,113340.0,0.2233902]
[1761718167479,0.23739015,113350.0,113340.0,0.2233902]
[1761718168577,0.05177528,113350.0,113340.0,0.2233902]
[1761718168794,0.20919405,113350.0,113340.0,0.2233902]
[1761718169012,0.21801628,113350.0,113340.0,0.2233902]
[1761718169266,0.23706967,113350.0,113340.0,0.2233902]
[1761718171451,0.08329751,113350.0,113340.0,0.1764602]
[1761718171658,0.23186653,113350.0,113340.0,0.2267002]
[1761718171895,0.07447528,113350.0,113340.0,0.2267002]
[1761718172113,0.03272189,113350.0,113340.0,0.2267002]
[1761718172398,0.20916653,113350.0,113340.0,0.2267002]
[1761718172636,0.00927198,113350.0,113340.0,0.2267002]
[1761718173079,0.00927198,113350.0,113340.0,0.25321368]
[1761718178423,0.00927198,113350.0,113340.0,0.2267002]
[1761718180489,0.00925464,113350.0,113340.0,0.2267002]
[1761718180690,0.001,113350.0,113340.0,0.2267002]
[1761718183300,0.39531472,113350.0,113340.0,0.2267002]
[1761718183515,0.40356936,113350.0,113340.0,0.2040602]
[1761718183923,0.40356936,113350.0,113340.0,0.2268502]
[1761718185043,0.64102501,113350.0,113340.0,0.0276]
[1761718185257,0.64102501,113350.0,113330.0,0.18880234]
[1761718185258,0.7741076,113350.0,113330.0,0.18880234]
[1761718185469,0.71309659,113350.0,113330.0,0.21159234]
[1761718185676,0.68886068,113350.0,113340.0,0.01549]
[1761718186321,0.71267741,113350.0,113340.0,0.01549]
[1761718186533,0.71167741,113350.0,113340.0,0.01549]
[1761718186741,0.71267741,113350.0,113340.0,0.01549]
[1761718186952,0.1764602,113340.0,113330.0,0.03512]
[1761718187164,0.59607365,113340.0,113320.0,0.21780591]
[1761718187383,0.00017863,113330.0,113320.0,0.21780591]
[1761718187858,0.00017863,113330.0,113320.0,0.23329591]
[1761718188926,0.00017863,113330.0,113320.0,0.23429591]
[1761718190220,0.00017863,113330.0,113320.0,0.23329591]
[1761718190645,0.00017863,113330.0,113320.0,0.23529591]
[1761718192150,0.00017863,113330.0,113320.0,0.20370739]
[1761718192151,0.1999744,113330.0,113320.0,0.20370739]
[1761718192373,0.60280477,113330.0,113320.0,0.00300604]
[1761718192576,0.60280477,113330.0,113320.0,0.03082604]
[1761718192577,0.59758835,113330.0,113320.0,0.03082604]
[1761718193444,0.59758835,113330.0,113320.0,0.02882604]
[1761718193649,0.59758835,113330.0,113320.0,0.05161604]
[1761718193858,0.59858835,113330.0,113320.0,0.05161604]
[1761718194274,0.59858835,113330.0,113320.0,0.22810739]
[1761718195432,0.22808363,113330.0,113320.0,0.22810739]
[1761718195641,0.29603902,113330.0,113320.0,0.22810739]
[1761718195859,0.22808363,113330.0,113320.0,0.22810739]
[1761718196283,0.20906005,113330.0,113320.0,0.22810739]
[1761718197039,0.20906005,113330.0,113320.0,0.05161604]
[1761718197457,0.57960347,113330.0,113320.0,0.05161604]
[1761718197673,0.68845828,113330.0,113320.0,0.05161604]
[1761718198280,0.68845828,113330.0,113320.0,0.02882604]
[1761718198501,0.68845828,113330.0,113320.0,0.00100604]
[1761718198502,0.71269828,113330.0,113320.0,0.00100604]
[1761718199663,0.59863927,113330.0,113320.0,0.01649604]
[1761718200002,0.59863927,113330.0,113320.0,0.22810739]
[1761718200225,0.02830008,113330.0,113320.0,0.22810739]
[1761718200453,0.00926428,113330.0,113320.0,0.22810739]
[1761718200868,0.001,113330.0,113320.0,0.22810739]
[1761718201308,0.17747577,113330.0,113320.0,0.22810739]
[1761718201526,0.18574005,113330.0,113320.0,0.22810739]
[1761718201969,0.55628347,113330.0,113320.0,0.22810739]
[1761718202193,0.57531927,113330.0,113320.0,0.22810739]
[1761718203292,0.20477585,113330.0,113320.0,0.22810739]
[1761718203504,0.18574005,113330.0,113320.0,0.22810739]
[1761718205962,0.55628347,113330.0,113320.0,0.22810739]
[1761718206170,0.57531927,113330.0,113320.0,0.22810739]
[1761718207865,0.20477585,113330.0,113320.0,0.22810739]
[1761718208084,0.18574005,113330.0,113320.0,0.22810739]
[1761718208330,0.55628347,113330.0,113320.0,0.22810739]
[1761718208536,0.57531927,113330.0,113320.0,0.22810739]
[1761718210175,0.57531927,113330.0,113320.0,0.00100604]
[1761718210176,0.68831828,113330.0,113320.0,0.00100604]
[1761718210372,0.71252828,113330.0,113320.0,0.00100604]
[1761718211001,0.73632282,113330.0,113320.0,0.00100604]
[1761718212052,0.71211282,113330.0,113320.0,0.01754604]
[1761718212261,0.71211282,113330.0,113320.0,0.02961604]
[1761718212483,0.71211282,113330.0,113320.0,0.00100604]
[1761718212689,0.73632282,113330.0,113320.0,0.00100604]
[1761718213924,0.73632282,113330.0,113320.0,0.17749739]
[1761718215417,0.7528676,113330.0,113320.0,0.17749739]
[1761718218184,0.7528676,113330.0,113320.0,0.00100604]
[1761718218411,0.7528676,113330.0,113320.0,0.17749739]
[1761718218620,0.7528676,113330.0,113320.0,0.00100604]
[1761718218824,0.7528676,113330.0,113320.0,0.17749739]
[1761718219043,0.78447966,113330.0,113320.0,0.00100604]
[1761718220383,0.41393624,113330.0,113320.0,0.00100604]
[1761718220606,0.78447966,113330.0,113320.0,0.00100604]
[1761718220827,0.78447966,113330.0,113320.0,0.17749739]
[1761718221059,0.78447966,113330.0,113320.0,0.00100604]
[1761718221284,0.87429867,113330.0,113320.0,0.00100604]
[1761718221511,1.24484209,113330.0,113320.0,0.00100604]
[1761718222685,1.02523561,113330.0,113320.0,0.00100604]
[1761718223115,1.20171138,113330.0,113320.0,0.00100604]
[1761718223621,1.77789366,113330.0,113320.0,0.00100604]
[1761718223809,1.78567196,113330.0,113320.0,0.00100604]
[1761718224963,1.71968234,113330.0,113320.0,0.00100604]
[1761718225195,1.51968234,113330.0,113320.0,0.00100604]
[1761718225418,1.14913892,113330.0,113320.0,0.00100604]
[1761718225882,1.15213892,113330.0,113320.0,0.00100604]
[1761718226108,1.12052686,113330.0,113320.0,0.00100604]
[1761718227654,1.21034587,113330.0,113320.0,0.00100604]
[1761718227885,1.58088929,113330.0,113320.0,0.00100604]
[1761718228321,1.61250135,113330.0,113320.0,0.00100604]
[1761718229014,1.58867196,113330.0,113320.0,0.00100604]
[1761718229487,1.61249175,113330.0,113320.0,0.00100604]
[1761718230588,1.81249175,113330.0,113320.0,0.00100604]
[1761718232778,1.83639161,113330.0,113320.0,0.00100604]
[1761718236215,0.7286237,113330.0,113320.0,0.00100604]
[1761718236485,0.70471974,113330.0,113320.0,0.02961604]
[1761718236700,1.11594316,113330.0,113320.0,0.00100604]
[1761718236919,1.09173316,113330.0,113320.0,0.00100604]
[1761718237347,1.09173316,113330.0,113320.0,0.17749739]
[1761718237792,1.18155217,113330.0,113320.0,0.00100604]
[1761718238657,1.17855217,113330.0,113320.0,0.00100604]
[1761718238909,1.18913229,113330.0,113320.0,0.00100604]
[1761718239570,1.12267328,113330.0,113320.0,0.00100604]
[1761718240300,1.09931328,113330.0,113320.0,0.00100604]
[1761718241325,1.0993183,113330.0,113320.0,0.00100604]
[1761718242816,0.72877488,113330.0,113320.0,0.00100604]
[1761718243022,1.0993183,113330.0,113320.0,0.01686604]
[1761718243672,0.72877488,113330.0,113320.0,0.01686604]
[1761718243880,1.0993183,113330.0,113320.0,0.01686604]
[1761718248343,1.0993183,113330.0,113320.0,0.00100604]
[1761718250277,1.0993183,113330.0,113320.0,0.01686604]
[1761718250923,1.0828483,113330.0,113320.0,0.02822604]
[1761718251138,1.0994783,113330.0,113320.0,0.02822604]
[1761718251800,1.09948939,113330.0,113320.0,0.02822604]
[1761718253197,0.72894597,113330.0,113320.0,0.02822604]
[1761718253437,1.09948939,113330.0,113320.0,0.02822604]
[1761718255415,1.09948939,113330.0,113320.0,0.00100604]
[1761718255575,1.12284939,113330.0,113320.0,0.00100604]
[1761718257550,1.2126684,113330.0,113320.0,0.00100604]
[1761718258681,1.12284939,113330.0,113320.0,0.00100604]
[1761718259333,0.75230597,113330.0,113320.0,0.00100604]
[1761718259536,1.12287041,113330.0,113320.0,0.00100604]
[1761718260975,1.12287157,113330.0,113320.0,0.00100604]
[1761718261388,1.09905271,113330.0,113320.0,0.00100604]
[1761718262863,1.18887172,113330.0,113320.0,0.00100604]
[1761718263430,1.23659137,113330.0,113320.0,0.00100604]
[1761718265853,1.23660894,113330.0,113320.0,0.00100604]
[1761718267028,1.23760894,113330.0,113320.0,0.00100604]
[1761718267711,1.14778993,113330.0,113320.0,0.00100604]
[1761718270392,1.14778977,113330.0,113320.0,0.00100604]
[1761718270609,1.34778977,113330.0,113320.0,0.00100604]
[1761718271673,1.34778977,113330.0,113320.0,0.02752846]
[1761718273218,1.38397205,113330.0,113320.0,0.02752846]
[1761718273428,1.47379106,113330.0,113320.0,0.00100604]
[1761718274764,1.47379106,113330.0,113320.0,0.02752911]
[1761718275945,1.47379106,113330.0,113320.0,0.00100604]
[1761718276156,1.442179,113330.0,113320.0,0.00100604]
[1761718276364,1.44217502,113330.0,113320.0,0.00100604]
[1761718280005,1.44117502,113330.0,113320.0,0.00100604]
[1761718280213,1.44617502,113330.0,113320.0,0.00100604]
[1761718282601,1.46208812,113330.0,113320.0,0.00100604]
[1761718282830,1.83265256,113330.0,113320.0,0.00100604]
[1761718283047,1.09152368,113330.0,113320.0,0.00100604]
[1761718283282,1.11805182,113330.0,113320.0,0.00100604]
[1761718283947,0.71649135,113320.0,113310.0,0.00014494]
[1761718284163,1.0263549,113320.0,113310.0,0.00014494]
[1761718284385,1.76748378,113320.0,113310.0,0.00014494]
[1761718284600,1.76748378,113320.0,113310.0,0.00035664]
[1761718285307,1.73245875,113320.0,113310.0,0.00035664]
[1761718288383,1.78003961,113320.0,113310.0,0.00035664]
[1761718293163,1.73245875,113320.0,113310.0,0.00035664]
[1761718293382,1.78001639,113320.0,113310.0,0.00035664]
[1761718299272,1.73245875,113320.0,113310.0,0.00035664]
[1761718299478,1.36189431,113320.0,113310.0,0.00035664]
[1761718302469,1.36185299,113320.0,113310.0,0.00035664]
[1761718303510,1.36182933,113320.0,113310.0,0.00035664]
[1761718305363,1.16182933,113320.0,113310.0,0.00035664]
[1761718309339,1.22538362,113320.0,113310.0,0.00035664]
[1761718311435,0.54710001,113300.0,113280.0,0.22130125]
[1761718311660,0.02383378,113290.0,113280.0,0.22130125]
[1761718311862,0.0321137,113290.0,113280.0,0.22130125]
[1761718312107,0.0321137,113290.0,113280.0,0.23650125]
[1761718312331,0.20865178,113290.0,113280.0,0.23713658]
[1761718313259,0.22522238,113290.0,113280.0,0.23713658]
[1761718313474,0.24428941,113290.0,113280.0,0.23713658]
[1761718314351,0.24428941,113290.0,113280.0,0.23913658]
[1761718314564,0.06775133,113290.0,113280.0,0.23913658]
[1761718314759,0.06775133,113290.0,113280.0,0.24013658]
[1761718314988,0.0321137,113290.0,113280.0,0.61070102]
[1761718315192,0.00827992,113290.0,113280.0,0.6372281]
[1761718315478,0.26016158,113300.0,113290.0,0.17653808]
[1761718315704,0.26016158,113300.0,113280.0,0.25082833]
[1761718315705,0.39403387,113300.0,113280.0,0.25082833]